[Event "MCCT Chessable Masters 2022"]
[Site "Online"]
[Date "2022.05.16"]
[Round "12.5"]
[White "Praggnanandhaa R"]
[Black "Van Foreest, Jorden"]
[Result "1-0"]
[ECO "E73"]
[WhiteElo "2642"]
[BlackElo "2715"]
[Annotator "TA"]
[PlyCount "97"]
[EventDate "2022.05.19"]
[EventType "tourn"]
[EventCountry "NET"]
[SourceTitle "playchess.com"]
[Source "ChessBase"]
[SourceQuality "1"]
[TimeControl "900+10"]

{[%evp 10,97,52,48,54,28,40,30,58,48,50,53,65,63,72,44,44,42,46,45,46,46,47,41,54,46,54,35,54,54,55,34,55,50,54,54,79,70,68,56,76,39,67,62,116,62,69,58,62,54,62,62,62,62,62,62,78,79,88,121,200,154,151,132,271,216,305,300,335,194,188,179,179,52,45,0,747,684,1016,942,870,517,526,509,1689,1657,1553,790,2089,1725]} 1. d4 {[%emt 0:00:00]} Nf6 {[%emt 0:00:00]} 2. c4 {[%emt 0:00:02]} g6 {[%emt 0:00:01]} 3. Nc3 {[%emt 0:00:01]} Bg7 {[%emt 0:00:01]} 4. e4 {[%emt 0:00:03]} d6 {[%emt 0:00:01]} 5. Be2 {[%emt 0:00:02]} O-O {[%emt 0:00:04]} 6. Be3 {[%emt 0:00:03]} a5 {[%emt 0:00:23] E73: King's Indian: Averbakh Variation without 6...c5.} 7. h4 {[%emt 0:00:49][%cal Bh2h4,Bh4h5,Bh5h6][%mdl 32] [#]} a4 $146 {[%emt 0:00:33][%cal Oc7c5]} ({Predecessor:} 7... Nc6 8. d5 Ne5 9. Nh3 c6 10. Qd2 a4 11. a3 cxd5 12. cxd5 Bxh3 13. Rxh3 Rc8 14. Nxa4 Nxe4 {½-½ (27) Davtyan,A (2437)-Van Foreest,L (2526) Groningen 2019}) 8. a3 {[%emt 0:03:02]} e5 {[%emt 0:00:02] White has an edge.} 9. d5 {[%emt 0:00:26]} Nbd7 {[%emt 0:00:07]} 10. h5 {[%emt 0:00:25]} Nc5 {[%emt 0:00:02]} 11. Bxc5 {[%emt 0:00:06]} dxc5 {[%emt 0:00:02]} 12. h6 {[%emt 0:00:25]} Bh8 {[%emt 0:00:02]} 13. Nf3 {[%emt 0:00:03]} Bd7 {[%emt 0:00:22]} 14. Qc2 {[%emt 0:00:18]} Ne8 {[%emt 0:00:24]} 15. O-O-O {[%emt 0:00:17]} Nd6 {[%emt 0:00:02]} 16. Kb1 {[%emt 0:00:10]} Qe7 {[%emt 0:00:16]} 17. Bd3 {[%emt 0:00:13]} Ra6 {[%emt 0:00:26]} 18. Qe2 {[%emt 0:00:37]} Bf6 {[%emt 0:00:54]} 19. Rdf1 {[%emt 0:01:00]} Rb8 {[%emt 0:00:17][%cal Ob7b5]} 20. Ka2 {[%emt 0:00:20]} Kf8 {[%emt 0:00:17]} 21. g3 {[%emt 0:00:19]} Bg4 {[%emt 0:00:53]} 22. Qe3 {[%emt 0:00:06] Inhibits Bg5.} Ra5 {[%emt 0:01:24]} 23. Nd2 {[%emt 0:01:46]} Bd7 {[%emt 0:00:02]} 24. Qe2 {[%emt 0:00:17]} Qe8 {[%emt 0:00:15]} 25. f3 {[%emt 0:00:29]} (25. f4 {feels hotter.} b5 26. cxb5 Nxb5 27. f5) 25... Kg8 {[%emt 0:00:16]} 26. Rh2 {[%emt 0:00:07]} Bh8 {[%emt 0:01:00]} (26... c6 $14) 27. Ka1 {[%emt 0:00:28]} ({Better is} 27. f4 $16) 27... Qe7 {[%emt 0:00:15]} 28. Qe3 {[%emt 0:00:15]} Bf6 {[%emt 0:00:03]} 29. Qe1 {[%emt 0:00:08]} Qe8 {[%emt 0:00:15]} 30. Qc1 {[%emt 0:00:39]} Qe7 {[%emt 0:00:38]} 31. Qc2 {[%emt 0:00:15]} Ra6 {[%emt 0:00:25]} 32. f4 {[%emt 0:00:45]} Qe8 {[%emt 0:00:57]} 33. f5 {[%emt 0:00:58] [#] Threatens to win with fxg6.} Bg5 {[%emt 0:00:07]} 34. Nf3 {[%emt 0:00:39]} Be3 {[%emt 0:01:04]} (34... Qe7 $16) 35. Re1 {[%emt 0:00:03]} Bd4 {[%emt 0:00:04]} 36. g4 {[%emt 0:00:02] White is more active.} g5 {[%emt 0:00:35]} (36... Qe7 $16) 37. Nxg5 {[%emt 0:02:22]} b5 {[%emt 0:00:03]} (37... Rb6 $142 38. Nf3 Rb3) 38. cxb5 {[%emt 0:00:06]} Bxb5 {[%emt 0:00:34]} 39. Nf3 {[%emt 0:00:14] Pair of Knights!} (39. Bxb5 $142 Nxb5 40. Nxb5 (40. Nxa4 {gets mated.} Nxa3 41. Qe2 Qxa4) 40... Rxb5 41. Qc1) 39... Bxd3 $18 {[%emt 0:01:03]} 40. Qxd3 {[%emt 0:00:01]} Rab6 {[%emt 0:00:08]} 41. Rc2 {[%emt 0:00:08]} (41. Nxd4 $18 cxd4 42. Na2) 41... Rb3 $1 $14 {[%emt 0:00:03] [#] aiming for ...Bxc3.} 42. Qd2 {[%emt 0:01:06]} (42. f6 $5 {[%cal Rd3d2]}) 42... Kf8 $2 {[%emt 0:01:46][%mdl 8192]} (42... f6 $11 43. g5 Bxc3 44. Rxc3 Rxb2 45. Qxb2 Rxb2 46. Kxb2 fxg5) 43. Qg5 $18 {[%emt 0:00:46] White is clearly winning.} Qe7 {[%emt 0:04:55] ...Qxg5 is the strong threat.} 44. f6 {[%emt 0:00:22]} Qd8 {[%emt 0:00:01]} 45. Nxe5 {[%emt 0:00:52] White wants to mate with Qg7+.} Ne8 {[%emt 0:00:43][%cal Ob3b2] Prevents Qg7+.} 46. Nc6 {[%emt 0:00:01]} Bxf6 {[%emt 0:00:19]} (46... Qxf6 $142 47. Qxf6 Nxf6 48. Nxb8 Rxb8 49. Nxa4 Rb5) 47. Qf5 {[%emt 0:00:12]} Qc8 {[%emt 0:00:31]} 48. Nxb8 {[%emt 0:00:05]} Qxb8 {[%emt 0:00:10]} 49. e5 {[%emt 0:00:05] Weighted Error Value: White=0.27 (precise) /Black=0.19 (very precise)} 1-0

[Event "MCCT Chessable Masters 2022"]
[Site "Online"]
[Date "2022.05.16"]
[Round "12.6"]
[White "Harikrishna, Pentala"]
[Black "Mamedyarov, Shakhriyar"]
[Result "0-1"]
[ECO "A38"]
[WhiteElo "2705"]
[BlackElo "2770"]
[Annotator "TA"]
[PlyCount "116"]
[EventDate "2022.05.19"]
[EventType "tourn"]
[EventCountry "NET"]
[SourceTitle "playchess.com"]
[Source "ChessBase"]
[SourceQuality "1"]
[TimeControl "900+10"]

{[%evp 18,116,0,0,48,18,14,14,14,20,14,17,12,16,12,19,63,68,43,40,39,35,51,0,0,0,0,0,0,-6,0,-8,15,16,75,74,79,73,65,66,67,69,88,79,92,49,110,102,103,87,88,0,0,-75,-76,-70,-75,-70,-73,-70,-73,-96,-94,-97,-94,-125,-129,-166,-134,-229,-232,-512,-174,-176,-175,-156,-156,-336,-210,-483,-479,-474,-456,-454,-431,-485,-444,-694,-671,-12825,-8700,-5627,-5632,-5749,-2895,-4631,-4631,-29979,-29979,-29980,-1423]} 1. Nf3 {[%emt 0:00:00]} Nf6 {[%emt 0:00:00]} 2. g3 {[%emt 0:00:05]} g6 {[%emt 0:00:16]} 3. Bg2 {[%emt 0:00:01]} Bg7 {[%emt 0:00:00]} 4. O-O {[%emt 0:00:02]} O-O {[%emt 0:00:01]} 5. c4 {[%emt 0:00:08]} c5 {[%emt 0:00:30]} 6. Nc3 {[%emt 0:00:48]} d5 {[%emt 0:00:51]} 7. cxd5 {[%emt 0:00:02]} Nxd5 {[%emt 0:00:00]} 8. Nxd5 {[%emt 0:00:02]} Qxd5 {[%emt 0:00:02]} 9. d3 {[%emt 0:00:01]} Nc6 {[%emt 0:00:03]} 10. Be3 {[%emt 0:00:02][%cal Of3d4]} Qe6 $5 {[%emt 0:01:02][%mdl 4] A promising side line. A38: Symmetrical English vs ...g6: 4 Bg2 Bg7 5 Nf3 Nf6.} (10... Bd7 $11 {might be stronger.}) 11. Bxc5 {[%emt 0:01:04]} (11. Ng5 {keeps more tension.} Qe5 12. Rc1 Qxb2 13. Rc2) 11... Bxb2 {[%emt 0:00:05]} 12. Rb1 {[%emt 0:00:01]} Bf6 {[%emt 0:00:23] The position is equal.} 13. Qd2 {[%emt 0:01:30]} b6 {[%emt 0:00:13] [#]} 14. Nd4 $1 {[%emt 0:01:33] [#]} Bxd4 $146 {[%emt 0:02:08]} (14... Nxd4 {seems wilder.} 15. Bxd4 Rb8 16. Bxf6 Qxf6 17. Rfc1 Rd8) ({Predecessor:} 14... Nxd4 15. Bxd4 Rb8 16. Bxf6 Qxf6 17. Rfc1 Qd6 18. Qc2 Bg4 19. h3 Rbc8 {0-1 (55) Holzapfel,D (2304)-Lindemann,S (2367) Germany 2005}) 15. Bxd4 {[%emt 0:00:03]} Nxd4 {[%emt 0:00:22]} 16. Bxa8 {[%emt 0:00:01]} Qxe2 {[%emt 0:00:57]} 17. Qxe2 {[%emt 0:04:03]} Nxe2+ {[%emt 0:00:00]} 18. Kh1 {[%emt 0:00:53]} Ba6 {[%emt 0:00:51][%csl LRa8,LRd3]} 19. Bg2 {[%emt 0:00:17] Black must now prevent Rb3.} Rc8 {[%emt 0:00:15]} 20. Rb3 {[%emt 0:00:34]} (20. Rfe1 $14) 20... Rc7 $11 {[%emt 0:00:39]} 21. Ra3 {[%emt 0:00:58]} Bb5 {[%emt 0:00:08]} 22. Rb3 {[%emt 0:00:38]} Nd4 {[%emt 0:01:11]} 23. Rb4 {[%emt 0:00:26]} e5 {[%emt 0:00:03]} 24. Rd1 {[%emt 0:00:20]} a5 {[%emt 0:01:55]} 25. Rb2 {[%emt 0:00:22]} a4 {[%emt 0:00:01]} (25... Rc5 $11) 26. f4 $1 $36 {[%emt 0:00:31][%mdl 2048] Keeping Black busy.} a3 {[%emt 0:02:02]} 27. Rf2 {[%emt 0:00:17]} Bd7 {[%emt 0:00:37]} 28. fxe5 {[%emt 0:00:41]} Be6 {[%emt 0:00:02]} 29. Be4 {[%emt 0:01:04]} Rc5 {[%emt 0:01:22]} 30. Rb1 {[%emt 0:00:23]} b5 {[%emt 0:01:36]} 31. Kg1 {[%emt 0:01:02]} ({Stronger than} 31. Rb4 Rc1+ 32. Kg2 Nc2 33. Rxb5 Ne1+ 34. Kg1 Bh3 35. Rb8+ Kg7 36. Rxf7+ Kxf7 $17) 31... Rxe5 {[%emt 0:00:32]} (31... h5 $14) 32. Rb4 {[%emt 0:00:24]} Nf5 {[%emt 0:00:01]} 33. Rc2 {[%emt 0:00:20]} Ne3 {[%emt 0:00:44] [#]} 34. Rc3 {[%emt 0:00:32]} ({White should play} 34. Rd2 $1 $16) 34... Kg7 $1 $11 {[%emt 0:00:07]} 35. Bf3 {[%emt 0:00:24]} (35. h3 $11) 35... Rf5 $17 {[%emt 0:00:56]} 36. Bg2 {[%emt 0:00:23]} Bxa2 {[%emt 0:00:01] And now ...Bd5 would win. Black is more active.} 37. Rxa3 {[%emt 0:00:54]} Nc2 $1 {[%emt 0:00:03][%csl LRa3,LRb4]} 38. Rxa2 {[%emt 0:00:16]} Nxb4 {[%emt 0:00:01][%mdl 4096] Endgame KRB-KRN} 39. Ra5 {[%emt 0:00:06]} Nc2 {[%emt 0:00:19] Strongly threatening ...b4.} (39... Nxd3 $2 40. Be4 $18) 40. Be4 {[%emt 0:00:14]} Rc5 {[%emt 0:00:06]} 41. Kf2 {[%emt 0:00:01]} Kf6 {[%emt 0:00:22]} 42. h4 {[%emt 0:00:03]} h5 {[%emt 0:00:04]} 43. Ke2 {[%emt 0:00:04]} (43. Ra7 $17) 43... Ke5 $19 {[%emt 0:00:10]} 44. Ra7 $2 {[%emt 0:00:25]} (44. Kd2) 44... Nd4+ $2 {[%emt 0:00:04]} (44... f5 45. Bh1 b4) 45. Ke3 {[%emt 0:00:10] [#]} f5 $1 {[%emt 0:00:06]} 46. Bg2 {[%emt 0:00:30]} ({Avoid the trap} 46. Re7+ $2 Kd6 47. Rg7 (47. Kxd4 $2 Kxe7 48. Bd5 Rc1 $19) 47... Ne6 48. Rxg6 fxe4 $19) 46... Rc2 {[%emt 0:00:27][%csl Gd4][%cal Rc2e2]} 47. Bf1 {[%emt 0:00:02] Prevents Re2+. This move loses the game for White.} (47. Bf3 $17) 47... Rc1 {[%emt 0:00:21]} 48. Bg2 {[%emt 0:00:08]} (48. Re7+ {was forced.} Kf6 49. Rb7) 48... Re1+ {[%emt 0:00:08]} 49. Kf2 {[%emt 0:00:01]} Re2+ {[%emt 0:00:01]} 50. Kf1 {[%emt 0:00:01]} Rd2 {[%emt 0:00:05]} 51. Re7+ {[%emt 0:00:09]} Kd6 {[%emt 0:00:17]} 52. Rg7 {[%emt 0:00:01]} (52. Rb7 $142) 52... b4 {[%emt 0:00:01][%cal Bb5b4,Bb4b3][%mdl 32] Hoping for ...b3.} 53. Rxg6+ {[%emt 0:00:10]} Kc5 {[%emt 0:00:03]} 54. Rg8 {[%emt 0:00:02]} b3 {[%emt 0:00:06]} 55. Rc8+ {[%emt 0:00:01]} Kb4 {[%emt 0:00:23] ( -> ...b2)} 56. Rb8+ {[%emt 0:00:09]} Kc3 {[%emt 0:00:07]} 57. Rc8+ {[%emt 0:00:01]} Kxd3 {[%emt 0:00:04]} 58. Bb7 {[%emt 0:00:47]} Rd1+ {[%emt 0:00:10] Weighted Error Value: White=0.67/Black=0.16 (very precise)} (58... b2 $142 59. Ba6+ Ke4 60. Rb8 Ke3 61. Re8+ Kf3 62. Bb7+ Kxg3 63. Re3+ Kf4 64. Re1 Rc2 65. Kg1 Rc1 66. Kf2 Rxe1 67. Kxe1 b1=Q+ 68. Kf2 Qc2+ 69. Kg1 Kg3 70. Bf3 Nxf3+ 71. Kh1 Qh2#) 0-1

[Event "MCCT Chessable Masters 2022"]
[Site "Online"]
[Date "2022.05.16"]
[Round "12.7"]
[White "Jones, Gawain C B"]
[Black "Hansen, Eric"]
[Result "1-0"]
[ECO "C43"]
[WhiteElo "2669"]
[BlackElo "2606"]
[Annotator "TA"]
[PlyCount "109"]
[EventDate "2022.05.19"]
[EventType "tourn"]
[EventCountry "NET"]
[SourceTitle "playchess.com"]
[Source "ChessBase"]
[SourceQuality "1"]
[TimeControl "900+10"]

{[%evp 21,109,23,20,21,11,26,35,10,49,7,10,11,11,8,11,7,18,0,0,0,39,44,62,62,62,0,10,0,10,8,16,7,15,5,8,5,69,0,0,0,0,0,0,0,35,29,369,111,498,256,876,561,603,597,948,948,941,835,1339,1324,1252,1227,1549,1472,1323,889,702,689,1501,1582,1103,1084,29956,29949,29949,29947,29948,29949,29939,29945,12794,6347,9226,6235,6209,6199,6187,6175,1652,1422]} 1. e4 {[%emt 0:00:00]} e5 {[%emt 0:00:00]} 2. Nf3 {[%emt 0:00:04]} Nf6 {[%emt 0:00:14]} 3. d4 {[%emt 0:00:05]} Nxe4 {[%emt 0:00:09]} 4. Bd3 {[%emt 0:00:02]} d5 {[%emt 0:00:06]} 5. Nxe5 {[%emt 0:00:02]} Bd6 {[%emt 0:00:24]} 6. c4 {[%emt 0:01:04]} c6 {[%emt 0:00:58]} 7. O-O {[%emt 0:00:47]} O-O {[%emt 0:00:07]} 8. Nc3 {[%emt 0:00:08]} Nxc3 {[%emt 0:00:12]} 9. bxc3 {[%emt 0:00:03]} Nd7 {[%emt 0:00:14]} 10. Nxd7 {[%emt 0:02:00]} Bxd7 {[%emt 0:01:53]} 11. cxd5 {[%emt 0:00:14]} cxd5 {[%emt 0:00:00]} 12. Qh5 {[%emt 0:00:04][%csl Gd3][%cal Rh5h7] C43: Petroff Defence: 3 d4.} g6 {[%emt 0:00:00]} 13. Qxd5 {[%emt 0:01:24]} Qc7 {[%emt 0:00:02][%csl LRc3,LRh2]} 14. Bh6 {[%emt 0:01:28] White is slightly better.} Rfe8 {[%emt 0:00:04]} (14... Rfd8 $5 {[%cal Rd6h2]}) 15. Qf3 {[%emt 0:02:45]} Qxc3 {[%emt 0:01:14]} 16. Qf6 {[%emt 0:02:48][%csl Gh6][%cal Rf6g7]} Bf8 {[%emt 0:00:03] Prevents Qg7+.} 17. Bxf8 {[%emt 0:00:01]} Rxf8 {[%emt 0:00:01]} 18. Be4 {[%emt 0:00:05]} Rad8 {[%emt 0:02:52] [#]} 19. Rac1 $5 $146 {[%emt 0:00:50][%mdl 8] An interesting novelty.} ({Predecessor:} 19. Rfc1 Qb2 20. Bd5 Qb6 21. Qxb6 axb6 22. Bxb7 Be6 23. Rd1 Rd7 24. Bc6 Rd6 25. d5 Rfd8 26. Rab1 Bxd5 {½-½ (26) Solak,D (2567)-Savic,M (2477) Cetinje 2010}) 19... Qa5 {[%emt 0:01:34]} 20. h4 {[%emt 0:01:01]} Rfe8 {[%emt 0:01:21][%cal Bf8e8,Be8e6,Be6f6,Bf6f5][%mdl 32]} 21. Bxb7 {[%emt 0:00:21]} Re6 {[%emt 0:02:22]} 22. Qf4 {[%emt 0:01:20]} Qb6 {[%emt 0:02:56]} 23. Rc7 {[%emt 0:00:52]} (23. Rb1 $14 Qd6 24. Qxd6 Rxd6 25. d5) 23... Rf6 {[%emt 0:00:15]} 24. Qe5 {[%emt 0:00:05][%cal Oc7d7] And now Rxd7! would win.} Rf5 {[%emt 0:00:12]} 25. Qg3 {[%emt 0:00:44]} Qxd4 {[%emt 0:00:04]} 26. Bf3 {[%emt 0:00:15] Threatens to win with Rd1.} Ba4 {[%emt 0:00:36] Prevents Rd1.} 27. h5 {[%emt 0:00:07]} Kg7 {[%emt 0:00:14]} 28. Rfc1 {[%emt 0:00:05]} Qd2 {[%emt 0:00:40]} ({Better is} 28... Re8 $11) 29. R7c4 {[%emt 0:00:25]} (29. Qh4 $1 $14 Re8 30. h6+ (30. Qxa4 $2 Re1+ 31. Kh2 Rxc1 $19) 30... Kf8 31. Rf1 (31. Qxa4 Re1+ 32. Kh2 Rxc1 $17)) 29... Rd4 $11 {[%emt 0:00:19]} 30. Rxd4 {[%emt 0:00:32]} Qxd4 {[%emt 0:00:32]} 31. Qb8 {[%emt 0:00:12]} gxh5 {[%emt 0:00:28]} 32. Qg3+ {[%emt 0:00:11]} Kf6 {[%emt 0:00:08]} 33. Qg8 {[%emt 0:00:06] Threatening mate with Qh8+.} Rg5 $2 {[%emt 0:00:15][%mdl 8192] [#] White leaves nothing to chance now.} (33... Qd2 $11 {and Black has nothing to worry.} 34. Rf1 (34. Rc7 $2 Qe1+ 35. Kh2 Qe5+ 36. Qg3 Rf4 $19) 34... Re5) 34. Qxh7 $2 {[%emt 0:00:15]} (34. Qh8+ $1 $18 {and the rest is easy.} Rg7 35. Qc8 (35. Bxh5 Qd2 $16)) 34... Qf4 $2 {[%emt 0:00:10][%mdl 8192]} (34... Ke7 $16 35. Bxh5 (35. Rc7+ Bd7 $14) 35... Qd5 36. Re1+ Kd8) 35. Re1 {[%emt 0:00:09]} Rg7 $2 {[%emt 0:00:10]} (35... Qxf3 36. Qh6+ Kf5 37. Qh7+ Kf6 38. Qh8+ Kg6 39. Qg8+ Kh6 40. Qxg5+ Kxg5 41. gxf3 f6) 36. Qxh5 {[%emt 0:00:06]} Bc2 {[%emt 0:00:09] [#]} 37. Qh8 {[%emt 0:00:21]} Bf5 {[%emt 0:00:08]} (37... Qg5 38. g4) 38. Bh5 {[%emt 0:00:11][%cal Rh8d8]} Qd4 {[%emt 0:00:12] Inhibits Qd8+.} 39. Re3 {[%emt 0:00:08]} Qa1+ {[%emt 0:00:11]} 40. Kh2 {[%emt 0:00:01][%cal Rh8d8]} Qd4 {[%emt 0:00:08] Prevents Qd8+.} 41. Rg3 {[%emt 0:00:14]} Bg6 {[%emt 0:00:12]} 42. Bxg6 {[%emt 0:00:04]} fxg6 $18 {[%emt 0:00:07][%mdl 4096] Endgame KQR-KQR} 43. Re3 {[%emt 0:00:17]} Qd6+ {[%emt 0:00:08]} 44. g3 {[%emt 0:00:04] Intending Rf3+ and mate.} g5 {[%emt 0:00:13]} 45. Qh6+ {[%emt 0:00:05]} Rg6 {[%emt 0:00:02]} 46. Rf3+ {[%emt 0:00:09]} Ke7 {[%emt 0:00:15]} 47. Qh7+ {[%emt 0:00:02]} Kd8 {[%emt 0:00:12]} 48. Qh8+ {[%emt 0:00:27]} Kc7 {[%emt 0:00:09]} 49. Rf7+ {[%emt 0:00:09]} Kb6 {[%emt 0:00:14]} 50. Qb2+ {[%emt 0:00:02]} Kc5 {[%emt 0:00:09]} 51. Qc2+ {[%emt 0:00:23]} (51. Qc3+ $142 Kb6 52. Qb3+ Kc5 53. Rf5+ Kc6 54. Qc4+ Kd7 55. Rd5) 51... Kb6 {[%emt 0:00:03]} 52. Qb3+ {[%emt 0:00:08]} Kc5 {[%emt 0:00:01]} 53. Rf5+ {[%emt 0:00:06]} Kc6 {[%emt 0:00:01]} 54. Qc4+ {[%emt 0:00:10]} Kd7 {[%emt 0:00:04]} 55. Rd5 {[%emt 0:00:02] Weighted Error Value: White=0.41/Black=0.67} 1-0

[Event "MCCT Chessable Masters 2022"]
[Site "Online"]
[Date "2022.05.16"]
[Round "12.8"]
[White "Anton Guijarro, David"]
[Black "Ding, Liren"]
[Result "1/2-1/2"]
[ECO "B50"]
[WhiteElo "2691"]
[BlackElo "2806"]
[Annotator "TA"]
[PlyCount "81"]
[EventDate "2022.05.19"]
[EventType "tourn"]
[EventCountry "NET"]
[SourceTitle "playchess.com"]
[Source "ChessBase"]
[SourceQuality "1"]
[TimeControl "900+10"]

{[%evp 11,81,4,7,0,30,10,25,12,41,16,77,77,66,15,43,45,41,51,65,54,71,65,71,43,42,29,47,47,52,48,43,46,54,54,46,29,44,40,56,14,17,5,4,4,4,4,4,4,5,4,4,5,5,0,27,27,24,0,0,0,26,26,35,35,35,35,35,35,35,35,40,17]} 1. e4 {[%emt 0:00:00]} c5 {[%emt 0:00:00]} 2. Nf3 {[%emt 0:00:03]} d6 {[%emt 0:00:01]} 3. c3 {[%emt 0:00:13]} Nf6 {[%emt 0:00:01]} 4. Be2 {[%emt 0:00:01]} g6 {[%emt 0:00:13]} 5. O-O {[%emt 0:00:08]} Bg7 {[%emt 0:00:01]} 6. Bb5+ {[%emt 0:00:03]} Nc6 {[%emt 0:00:06]} 7. d4 {[%emt 0:00:04] B50: Sicilian: 2...d6, Miscellaneous.} cxd4 {[%emt 0:00:48]} 8. cxd4 {[%emt 0:00:05] White wants to play d5.} O-O {[%emt 0:00:00]} 9. d5 {[%emt 0:01:34] [#] White has an edge.} Na5 $146 {[%emt 0:00:05]} ({Predecessor:} 9... Ne5 10. Nxe5 dxe5 11. Nc3 a6 12. Bd3 e6 13. Qb3 exd5 14. exd5 Ne8 15. Be3 Nd6 {0-1 (29) Airapetian,T (2094)-Akatova,E (2153) Dagomys 2004}) 10. Bd3 {[%emt 0:01:19]} Bg4 {[%emt 0:00:54]} (10... b5 $11 {remains equal.}) 11. Nbd2 $16 {[%emt 0:00:33]} Nd7 {[%emt 0:00:01]} 12. Be2 {[%emt 0:02:14]} ({Better is} 12. Rb1 $14 Qc7 13. h3 Bxf3 14. Nxf3) 12... Rc8 {[%emt 0:00:08]} 13. Rb1 {[%emt 0:00:32] [#] Hoping for b4.} Nb6 {[%emt 0:04:44]} 14. b3 {[%emt 0:02:23]} e6 {[%emt 0:00:04]} 15. h3 {[%emt 0:02:07]} Bxf3 {[%emt 0:00:01]} 16. Bxf3 {[%emt 0:00:01]} ({Much worse is} 16. Nxf3 exd5 17. exd5 Rc5 $11) 16... Re8 {[%emt 0:00:27]} 17. dxe6 {[%emt 0:00:34]} fxe6 {[%emt 0:00:02]} 18. Be2 {[%emt 0:00:44]} Nc6 {[%emt 0:00:16]} 19. Nf3 {[%emt 0:00:12]} d5 {[%emt 0:00:15]} 20. exd5 {[%emt 0:00:55]} Nxd5 {[%emt 0:00:01]} 21. Bd2 {[%emt 0:00:07]} Nc3 {[%emt 0:00:01]} 22. Bxc3 {[%emt 0:00:02]} Bxc3 {[%emt 0:00:02]} 23. Bc4 {[%emt 0:00:18]} a6 {[%emt 0:01:28]} 24. Qxd8 {[%emt 0:00:35]} Rcxd8 {[%emt 0:00:21]} 25. Rfd1 {[%emt 0:00:43]} Nd4 {[%emt 0:01:37]} 26. Rd3 {[%emt 0:00:38]} Nxf3+ {[%emt 0:00:32]} 27. Rxf3 {[%emt 0:00:01]} Bd4 {[%emt 0:00:00]} 28. Re1 {[%emt 0:00:06]} Rd6 {[%emt 0:00:01]} 29. a4 {[%emt 0:00:24]} Kg7 {[%emt 0:00:03]} 30. g3 {[%emt 0:00:18]} Re7 {[%emt 0:00:01]} 31. Kg2 {[%emt 0:00:11]} e5 {[%emt 0:00:01][%cal Be6e5,Be5e4][%mdl 32]} 32. Re2 {[%emt 0:00:18]} e4 {[%emt 0:00:42]} 33. Rf4 {[%emt 0:00:06]} Rf6 {[%emt 0:00:06]} 34. Rxf6 {[%emt 0:00:15]} Kxf6 $11 {[%emt 0:00:00][%mdl 4096] Endgame KRB-KRB} 35. Bd5 {[%emt 0:00:07]} e3 {[%emt 0:00:31]} 36. fxe3 {[%emt 0:00:10]} Rxe3 {[%emt 0:00:00]} 37. Rxe3 {[%emt 0:00:07] White is slightly better.} Bxe3 {[%emt 0:00:00]} 38. Bxb7 {[%emt 0:00:13]} a5 {[%emt 0:00:01]} 39. Kf3 {[%emt 0:00:03]} Bc5 {[%emt 0:00:02]} 40. Ba6 {[%emt 0:00:04]} h5 {[%emt 0:00:05]} 41. h4 {[%emt 0:00:02] Weighted Error Value: White=0.08 (flawless) /Black=0.09 (flawless)} 1/2-1/2